Cogmind - Beta 15 @@@ ROGUE MODE // 2025.09.22 @ 16:17:23 Player: Blue Result: Destroyed by D-53 Grenadier with Mini Grenade Launcher Performance ------------- Evolutions (0) 0 Regions Visited (2) 400 Robots Destroyed (19) 95 Value Destroyed (312) 312 Prototype IDs (2) 40 Alien Tech Used (0) 0 Bonus (0) 0 TOTAL SCORE: 847 Bonus ------- None Cogmind --------- Core Integrity 0/250 Matter 255/300 Energy 95/100 System Corruption 0% Temperature Cool (0) Movement Core (50) Location -10/Mines Parts ------- > --- POWER (1) -------- (None) > --- PROPULSION (2) --- (None) > --- UTILITY (2) ------ (None) > --- WEAPON (2) ------- (None) > --- INVENTORY (5) ---- Light Treads Light Treads Wheel Medium Matter Pod (100) Grenade Launcher Peak State ------------ > --- POWER ------------ Ion Engine > --- PROPULSION ------- Light Treads Light Treads > --- UTILITY ---------- Huge Storage Unit Targeting Computer > --- WEAPON ----------- Beam Rifle Beam Rifle > --- INVENTORY -------- Ion Engine Light Treads Light Treads Light Treads Light Treads Wheel Wheel Medium Matter Pod Signal Interpreter Medium Laser Grenade Launcher [Rating: 10] Favorites ----------- Power Ion Engine Engine Ion Engine Propulsion Light Treads Treads Light Treads Wheel Compact Wheel Utility Huge Storage Unit Device Heat Sink Storage Huge Storage Unit Processor Targeting Computer Weapon Medium Laser Energy Gun Medium Laser Ballistic Gun Light Assault Rifle Launcher Grenade Launcher Build | -11 -10 -10 ------- Run | Yrd Mat Min Slots Evolved . | . . . Power . | . . . Propulsion . | . . . Utility . | . . . Weapon . | . . . Parts Attached 21 | 7 6 8 Power 3 | 1 1 1 Engine 3 | 1 1 1 Core . | . . . Reactor . | . . . Propulsion 6 | 2 2 2 Treads 4 | . 2 2 Leg . | . . . Wheel 2 | 2 . . Hover . | . . . Flight . | . . . Utility 6 | 2 2 2 Device 3 | 1 1 1 Storage 2 | 1 1 . Processor 1 | . . 1 Hackware . | . . . Protection . | . . . Artifact . | . . . Weapon 6 | 2 1 3 Energy Gun 4 | 1 1 2 Energy Cannon . | . . . Ballistic Gun 1 | 1 . . Ballistic Cannon . | . . . Launcher 1 | . . 1 Special Weapon . | . . . Impact Weapon . | . . . Slashing Weapon . | . . . Piercing Weapon . | . . . Special Melee Weapon . | . . . Unidentified Prototypes . | . . . Parts Lost 8 | . 3 5 Power 2 | . 1 1 Propulsion 2 | . . 2 Utility 1 | . 1 . Weapon 3 | . 1 2 Highest Loss Streak 5 | . 3 5 To Critical Strikes . | . . . Average Backups 8 | 1 9 10 Power 1 | . 1 1 Propulsion 5 | . 5 6 Utility 1 | . . 2 Weapon . | . . 1 Tool/Special . | . . . Unused Backups 8 | . . 8 Power . | . . . Propulsion 6 | . . 6 Utility 2 | . . 2 Weapon . | . . . Tool/Special . | . . . Average Slot Usage (%) 92 | . 94 88 Engine 12 | . 12 13 Treads 26 | . 26 26 Device 10 | . 12 6 Storage 13 | . 14 13 Energy Gun 23 | . 24 20 Ballistic Gun 1 | . 1 . Launcher 1 | . . 5 Peak Build Rating 10 | 9 9 10 Average Rating 7 | 5 7 8 On Entrance 4 | . 9 5 Naked Turns 3 | . . 3 Heaviest Build 92 | 14 90 92 Greatest Support 40 | 32 40 40 Greatest Overweight (x) 2 | . 2 2 Average Overweight (x) 1 | . 1 1 Largest Inventory Capacity 25 | 8 25 25 Average Capacity 22 | 7 23 24 Most Carried 13 | 3 11 13 Average Carried 8 | . 9 10 Final Capacity 25 | 8 25 5 Final Carried 11 | 3 11 5 Class Distribution -------------------- 85% | Mutant 14% | Scavenger-Mutant Dominant Class ---------------- Mutant | -10/Materials Scavenger-Mutant | -10/Mines Resources | -11 -10 -10 ----------- Run | Yrd Mat Min Matter Collected 488 | 279 149 60 Remotely . | . . . Salvage Created 502 | 121 333 48 Parts 32 | 9 18 5 Haulers Intercepted . | . . . Recyclers Shooed . | . . . Parts Field Recycled . | . . . Retrieved Matter . | . . . Parts Self-Destructed . | . . . Prevented . | . . . Kills | -11 -10 -10 ------- Run | Yrd Mat Min Combat Hostiles Destroyed 12 | . 7 5 Guns 8 | . 7 1 AOE 4 | . . 4 Classes Destroyed 6 | 2 4 . Worker 1 | . 1 . Tunneler 3 | 3 . . Recycler 2 | 1 1 . Watcher 1 | . 1 . Swarmer 8 | . 3 5 Grunt 4 | . 4 . Best Kill Streak 5 | 3 5 5 Combat Bots Only 5 | . 5 5 Max Kills in Single Turn 3 | 3 2 3 Gunslinging 1 | . 1 . Exploded 3 | . . 3 Melee . | . . . Uniques/NPCs Destroyed . | . . . Combat | -11 -10 -10 -------- Run | Yrd Mat Min Hostile Shots Fired 68 | . 43 25 Missed 18 | . 14 4 Hits 50 | . 29 21 Projectile 50 | . 29 21 AOE 15 | . . 15 Damage Taken 1221 | 36 560 625 Core 293 | . 134 159 Absorbed by Shields . | . . . Core Remaining (%) 100 | 100 . . Volleys Fired 33 | 9 18 6 Largest 2 | 2 2 2 Hottest 112 | 60 90 112 Shots Fired 62 | 18 33 11 Gun 60 | 18 33 9 Cannon . | . . . Launcher 2 | . . 2 Special . | . . . Kinetic 9 | 9 . . Thermal 27 | . 18 9 Explosive 2 | . . 2 Electromagnetic 24 | 9 15 . Robot Hit Streak 5 | 3 5 4 Robot Miss Streak 5 | 2 5 2 Penetration Max . | . . . Secondary Targets 1 | . 1 . Max Gunslinging Chain 1 | . 1 . Shots Hit Robots 37 | 11 19 7 Core Hits 25 | 4 14 7 Critical Kills . | . . . Critical Parts Destroyed . | . . . Critical Strikes 1 | . 1 . Burn 1 | . 1 . Melee Attacks . | . . . Impact . | . . . Slashing . | . . . Piercing . | . . . Sneak Attacks . | . . . Combat Hostiles . | . . . Follow-up Attacks . | . . . Damage Inflicted 912 | 231 448 233 Guns 476 | 121 271 84 Cannons . | . . . Explosions 436 | 110 177 149 Melee . | . . . Ramming . | . . . Kinetic 54 | 54 . . Thermal 358 | 110 164 84 Explosive 261 | . 112 149 Electromagnetic 239 | 67 172 . Impact . | . . . Slashing . | . . . Piercing . | . . . Highest Corruption . | . . . Average Corruption . | . . . Corruption Purged . | . . . Corruption Blocked . | . . . Overload Shots . | . . . Overflow Damage 71 | 17 54 . Projectiles . | . . . Explosions 71 | 17 54 . Melee . | . . . Knockbacks . | . . . Impact . | . . . Kinetic . | . . . Secondary . | . . . Self-Inflicted Damage 287 | 36 236 15 Shots 5 | 1 3 1 Rammed . | . . . Targets Rammed . | . . . Kicked . | . . . Crushed . | . . . Highest Temperature 225 | 60 225 53 Average Temperature 57 | 29 78 29 Received Heat Transfer 141 | . 141 . Siege Activations . | . . . Martial Activations . | . . . Shielding Activations . | . . . Robots Disrupted . | . . . Combat Hostiles . | . . . Robots Corrupted . | . . . Combat Hostiles . | . . . Parts Fried . | . . . Impact Corruptions . | . . . Robots Melted . | . . . Combat Hostiles . | . . . Parts Melted . | . . . Heat Transferred 842 | 150 470 222 Parts Sabotaged . | . . . Parts Stolen . | . . . Parts Stripped . | . . . Power Chain Reactions 3 | 2 1 . Alert | -11 -10 -10 ------- Run | Yrd Mat Min Maximum Alert Level . | . . . Low Security (%) 100 | 100 100 100 Level 1 . | . . . Level 2 . | . . . Level 3 . | . . . Level 4 . | . . . Level 5 . | . . . High Security . | . . . Max Security . | . . . Peak Influence 137 | 15 110 137 Initial 14 | . 3 14 Average 27 | 1 28 32 Influence Increases 431 | 20 274 137 Destroy 0b10 Robot/C 240 | . 140 100 Destroy 0b10 Robot/NC 35 | 20 15 . Destroy Leader 52 | . 32 20 Successful Hack 7 | . 7 . Disable Machine 30 | . 30 . Destroy Structure 52 | . 35 17 Lose Combat Pursuer 15 | . 15 . Influence Decreases 374 | 15 241 118 Entered New Map 26 | . 2 24 Time Decay 268 | 15 209 44 Lost Part 80 | . 30 50 Squads Dispatched 1 | . 1 . Investigation . | . . . Extermination . | . . . Reinforcement 1 | . 1 . Assault . | . . . Garrison . | . . . Intercept . | . . . Searches Triggered . | . . . Construction Impeded . | . . . Haulers Reinforced . | . . . Active Scanning Responses . | . . . Cargo Convoy Interrupts . | . . . Stealth | -11 -10 -10 --------- Run | Yrd Mat Min Distress Signals 1 | . 1 . Communications Jammed . | . . . Distress Signals . | . . . Times Spotted 21 | . 12 9 Peak Tracking Total 7 | . 7 5 Tactical Retreats 1 | . 1 . Traps | -11 -10 -10 ------- Run | Yrd Mat Min Traps Triggered . | . . . Indirectly . | . . . Trap Hack Attempts . | . . . Triggered . | . . . Disarmed . | . . . Reprogrammed . | . . . Reused . | . . . Traps Extracted . | . . . Installed . | . . . Triggered . | . . . Machines | -11 -10 -10 ---------- Run | Yrd Mat Min Machines Disabled 2 | . 2 . Max in Single Turn 2 | . 2 . Machines Repaired . | . . . Machines Dismantled . | . . . Machines Sabotaged . | . . . Overloaded Fab Kills . | . . . Hacking | -11 -10 -10 --------- Run | Yrd Mat Min Machines Accessed 2 | . 2 . Terminals 2 | . 2 . Fabricators . | . . . Repair Stations . | . . . Recycling Units . | . . . Scanalyzers . | . . . Garrison Access . | . . . Total Hacks 5 | . 5 . Successful 2 | . 2 . Failed 3 | . 3 . Catastrophic 1 | . 1 . Database Lockouts . | . . . Manual 1 | . 1 . Terminals 5 | . 5 . Fabricators . | . . . Repair Stations . | . . . Recycling Units . | . . . Scanalyzers . | . . . Garrison Access . | . . . Terminal Hacks 2 | . 2 . Prototype ID Bank 1 | . 1 . Registered Components 1 | . 1 . Fabricator Hacks . | . . . Repair Station Hacks . | . . . Recycling Unit Hacks . | . . . Scanalyzer . | . . . Garrison Access Hacks . | . . . Unauthorized Hacks . | . . . Terminals . | . . . Fabricators . | . . . Repair Stations . | . . . Recycling Units . | . . . Scanalyzers . | . . . Garrison Access . | . . . Data Cores Recovered . | . . . Used . | . . . Hacking Detections 2 | . 2 . Full Trace Events . | . . . Feedback Events . | . . . Feedback Blocked . | . . . Robot Schematics Acquired . | . . . Robots Built . | . . . Authchips . | . . . Time . | . . . Total Robot Build Rating . | . . . Part Schematics Acquired . | . . . Parts Built . | . . . Authchips . | . . . Time . | . . . Total Part Build Rating . | . . . Parts Repaired . | . . . Time . | . . . Parts Recycled . | . . . Recycled Matter . | . . . Retrieved Matter . | . . . Retrieved Components . | . . . Parts Scanalyzed . | . . . Part Schematics Acquired . | . . . Parts Damaged . | . . . Bothacking | -11 -10 -10 ------------ Run | Yrd Mat Min Used RIF Installer . | . . . Robots Hacked . | . . . Non-combat . | . . . Combat . | . . . Robot Hacks Applied . | . . . Relay Couplers Released . | . . . Fabnet Peak Effective % . | . . . Robots Rewired . | . . . Allies Hacked . | . . . Hacks Repelled . | . . . Allies | -11 -10 -10 -------- Run | Yrd Mat Min Total Allies . | . . . Largest Group . | . . . Highest-Rated Group . | . . . Highest-Rated Ally . | . . . Total Orders . | . . . Ally Attacks . | . . . Total Damage . | . . . Kills . | . . . Allies Corrupted . | . . . Allies Melted . | . . . Intel | -11 -10 -10 ------- Run | Yrd Mat Min Active Infowar (turns) 186 | 13 173 . Terrain 186 | 13 173 . Robot Analysis Total . | . . . Derelict Logs Recovered . | . . . Drone Launches . | . . . Drone Recoveries . | . . . Exploration | -11 -10 -10 ------------- Run | Yrd Mat Min Turns Passed 1040 | 78 717 245 Spaces Moved 337 | 40 230 67 Core 3 | 1 . 2 Treads 270 | . 205 65 Legs . | . . . Wheels 64 | 39 25 . Hover . | . . . Flight . | . . . Fastest Speed 50 | 50 100 50 Average Speed 266 | 98 282 311 Slowest Speed 320 | 100 320 320 Overloaded Moves . | . . . Propulsion Burnouts . | . . . Robots Hopped . | . . . Potential Cave-ins . | . . . Cave-ins Triggered . | . . . Exploration Rate (%) 26 | 4 50 26 Regions Visited 2 Branch Regions 1 Pre-discovered Areas . | . . . Known Exits Taken . | . . . Unknown Exits Taken 2 | 1 1 . Scrap Searched . | . . . Spaces Dug . | . . . Terrain Destroyed 61 | 8 36 17 Melee . | . . . Projectile . | . . . AOE 61 | 8 36 17 Terrain Rammed . | . . . Walls Destroyed . | . . . Machines Disabled . | . . . Actions | -11 -10 -10 --------- Run | Yrd Mat Min Total 410 | 58 263 89 Wait 2 | . 2 . Move 335 | 39 229 67 Hop . | . . . Pick Up 12 | 3 7 2 Fast Attach 8 | 7 . 1 Attach 3 | . . 3 Detach . | . . . Swap 13 | . 6 7 Drop 4 | . 1 3 Fire 33 | 9 18 6 Melee . | . . . Ram . | . . . Kick . | . . . Crush . | . . . Escape Stasis . | . . . Rewire . | . . . Trap . | . . . Miscellaneous . | . . . Route ------- -11/Scrapyard -10/Materials -10/Mines (discovered 1 exit: [*Mat]) History --------- Turn | Location | Event 18 | -11/Scrapyard | Discovered new exit (range 16) 79 | -11/Scrapyard | Entered Materials 311 | -10/Materials | Build established: Mutant 725 | -10/Materials | Lost 3 parts (1p1u1w) 761 | -10/Materials | Discovered new exit (range 12) 796 | -10/Materials | Core integrity fell below 50% 796 | -10/Materials | Entered Mines 811 | -10/Mines | Discovered new exit (range 12) 862 | -10/Mines | Joined a pair of Derelicts in attacking an 0b10 outpost 1015 | -10/Mines | Assembled infested the area 1038 | -10/Mines | Released all parts (3) 1040 | -10/Mines | Core integrity fell below 20% 1041 | -10/Mines | Destroyed by D-53 Grenadier with Mini Grenade Launcher Last Messages --------------- 01015_ ALERT: Infestation in the mines, dispatching Demolisher response squad. 01023_ C-30 ARC bursts open, deploying its payload. 01023_ D-53 Grenadier unfolds itself. 01030_ The unstable cave ceiling collapses. 01031_ Lgt. Treads destroyed. 01033_ The unstable cave ceiling collapses. 01033_ Ion Engine destroyed. 01035_ The unstable cave ceiling collapses. 01035_ Beam Rifle destroyed. 01037_ The unstable cave ceiling collapses. 01038_ Lgt. Treads destroyed. 01038_ Released Huge Storage Unit. 01038_ Released Heat Sink. 01038_ Released Med. Laser. 01039_ The unstable cave ceiling collapses. 01039_ Lgt. Treads crushed. 01039_ Dropped Wheel. 01040_ Acquired Grenade Launcher. Map ----- +----------------------------------------------------+ | | | | | ?????????????????????????????????????????? | | ?????????????????????????????????????????? | | ?????????????????????????????????????????? | | ?????????????????????????????????????????? | | ?????????????????????????????????????????? | | ?????????????????????????????????????????? | | ?????????????????????????????????????????? | | ?????????????????????????????????????????? | | ?????????????????????????????????????????? | | ?????????????????????????????????????????? | | ?????????????????????????????????????????? | | ?????????????????????????????????????????? | | ?????????????????????????????????????????? | | ??????????????###????????????????????????? | | ?????????????? ????????????????????????? | | ??????????????# ????????????????????????? | | ??????????????# ????????????????????????? | | ??????????????# ##??????????????????????? | | ??????????????# ######?????????????????? | | ??????????????# ##????????????????? | | ?????????????## #????????????????? | | ????????????## #????????????????? | | ????????????# #??????????????????? | | ????????????# @ #??????????????????? | | ????????????# = = ####???????????????? | | ????????????# ! ????????? | | ????????????# ########???????????? | | ???????????## #??????????????????? | | ???????????# ##??????????????????? | | ???????????# ##???????????????????? | | ???????????## = ###????????????????????? | | ????????????# d #??????????????????????? | | ????????????## d ##?????????????###??????? | | ?????????????##= #?????????????# ##?????? | | ?????????????# #???????????## ?????? | | ?????????????## ##??????????## ??????? | | ??????????????#%#???????????# #??????? | | ??????????????# #???????????# ##?????? | | ??????????????# ###????????## ##????? | | ??????????????# #?????#### ##???? | | ??????????????### #????## ????? | | ????????????????# #????# #?????? | | ????????????????# #????# #??????? | | ?????############ ##???# ##?????? | | ????##"%## #???# ###???? | | ????#""! # < ##### #???? | | ????#! + #??? | | ????#[! =+= # | +----------------------------------------------------+ Best States ------------- Heat Dissipation 35 Energy Generation 10 Energy Capacity 250 Matter Stores 300 Matter Capacity 300 Sight Range 16 Terrain Scan Range 16 Terrain Scan Density 10 Evasion (%) 50 Targeting Accuracy 5 Recoil Reduction 2 Item Schematics ----------------- None Robot Schematics ------------------ None Fabricated ------------ Nothing Repaired ---------- Nothing Alien Tech Used ----------------- None Achievements -------------- None Challenges ------------ None Game ------ Seed ReactiveTripodDetonator Manual? 0 Play Time 00:07:24 Cumulative 65.5 hours Start 2025.09.22 @ 16:09:14 End 2025.09.22 @ 16:17:23 Sessions 1 Manual Loads 0 Difficulty Rogue Special Mode None Game No. 45 Rogue 45 Adventurer 0 Explorer 0 Win Type - Total 0 Types 0/0/0/0/0/0/0/0/0/0 Lore% 24 Gallery% 39 Achievement% 36 Wizard Run 0 Options --------- Layout 1 ASCII 0 Keyboard 1 Movement Arrows Keybinds 0 Fullscreen 1 Font 24/Smallcaps Map View 50x35 Zoom Use 0% Tactical HUD 1 Map Filters NONE Filters NONE Steam 1 RUN: 3f46c8c7-886a-4cb0-80d7-3ac8be990dc9